[Event "ESP-chT Honor Division 2022"]
[Site "Linares"]
[Date "2022.09.19"]
[Round "3.4"]
[White "Alonso Rosell, Alvar"]
[Black "Muzychuk, Anna"]
[Result "1/2-1/2"]
[ECO "D78"]
[WhiteElo "2564"]
[BlackElo "2526"]
[Annotator "TA"]
[PlyCount "191"]
[EventDate "2022.09.17"]
[EventType "team-tourn"]
[EventCountry "ESP"]
[SourceTitle "playchess.com"]
[Source "ChessBase"]
[SourceQuality "1"]
[TimeControl "5400+30"]

{[%evp 15,191,-23,-23,-17,-6,0,0,11,96,104,75,85,100,105,93,108,96,106,85,82,104,90,108,84,81,74,90,56,80,75,75,83,101,104,91,99,92,103,97,91,100,80,80,80,81,72,72,49,39,32,115,115,115,115,115,115,116,115,129,115,115,115,115,100,100,23,23,6,32,28,35,35,47,47,53,78,115,115,115,43,115,116,190,190,190,190,190,190,190,190,190,190,190,190,12833,12834,1917,190,190,190,190,190,190,190,190,190,190,190,190,190,190,190,190,190,190,190,191,190,190,190,237,191,191,191,274,191,191,190,357,266,260,190,252,190,190,190,190,190,191,190,190,190,190,176,183,0,183,183,191,190,190,190,190,190,190,0,0,0,0,0,0,0,0,0,0,0,0,0,0,0,0,0,0,0,0,0,0,0]} 1. d4 {[%emt 0:00:04]} Nf6 {[%emt 0:00:07]} 2. c4 {[%emt 0:00:05]} g6 {[%emt 0:00:08]} 3. Nf3 {[%emt 0:00:08]} Bg7 {[%emt 0:00:09]} 4. g3 {[%emt 0:00:08]} c6 {[%emt 0:02:07]} 5. Bg2 {[%emt 0:00:19]} d5 {[%emt 0:00:15]} 6. O-O {[%emt 0:00:13]} O-O {[%emt 0:00:42]} 7. Nc3 {[%emt 0:00:05]} dxc4 {[%emt 0:05:03]} 8. e4 {[%emt 0:00:30]} b5 {[%emt 0:06:53] BESTDEEP} 9. Qe2 {[%emt 0:00:30] D78: Fianchetto Grünfeld: 6 0-0 c6.} Na6 {[%emt 0:05:32] BESTDEEP} 10. Rd1 {[%emt 0:12:54] BESTDEEP} Bg4 {[%emt 0:02:27][%cal Oe7e5] [#] EASY} 11. a4 $146 {[%emt 0:12:00] BESTDEEP} ({Predecessor:} 11. h3 Bxf3 12. Bxf3 Nc7 13. a4 e6 14. Bg5 Qd7 15. axb5 Nxb5 16. Nxb5 cxb5 17. Bxf6 Bxf6 {1-0 (31) Mayrhuber,N (2110)-Sedina,E (2258) Corte 2022}) 11... Nb4 {[%emt 0:09:36] RELBLUND 85 (b5-b4) (=21)} (11... b4 $11 12. Na2 Qc8) 12. axb5 $16 {[%emt 0:03:11] CPLX 3.6=>BLUNDERREACT} cxb5 {[%emt 0:00:16] RECAPT} 13. Nxb5 {[%emt 0:03:10] RECAPT} Nd3 {[%emt 0:00:44] CPLX 3.8 15 (Qd8-c8) (=17)} 14. Na3 {[%emt 0:07:35] BESTDEEP} Bxf3 {[%emt 0:24:08] CPLX 3.9} 15. Bxf3 {[%emt 0:00:23] Threatens to win with Be3. RECAPT} Qxd4 {[%emt 0:00:47] [#] CPLX 3.0} 16. Nxc4 $1 {[%emt 0:13:30] BESTDEEP} Qxc4 {[%emt 0:13:30] RECAPT} 17. Qxd3 {[%emt 0:00:24] CPLX 3.1} (17. Rxd3 {is more complex.} e6 18. Bf4 a5 19. Bd6) 17... Qxd3 {[%emt 0:01:51] RECAPT 22 (Qc4-c7) (=12)} 18. Rxd3 {[%emt 0:00:02] RECAPT} e5 {[%emt 0:08:21] CPLX 2.0 18 (e7-e6) (=13)} 19. Rda3 {[%emt 0:25:32] CPLX 2.0 24 (Bc1-d2) (=2)} Rfc8 {[%emt 0:02:58] CPLX 2.0 0 (Rf8-b8) (=12)} 20. Be3 {[%emt 0:02:33] CPLX 2.0} Rab8 {[%emt 0:05:18] CPLX 2.0 16 (h7-h5) (=12)} 21. Rb1 {[%emt 0:06:37] CPLX 2.0 34 (Ra3xa7) (=4)} Rc2 {[%emt 0:01:40] CPLX 2.0 24 (Bg7-f8) (=13)} 22. b3 {[%emt 0:00:31] BESTDEEP} Rc3 {[%emt 0:01:22] BESTDEEP} 23. Rxa7 {[%emt 0:02:14] EASY} Rcxb3 {[%emt 0:01:54] CPLX 2.3 18 (Bg7-f8) (=12)} 24. Rxb3 {[%emt 0:00:06] RECAPT} Rxb3 {[%emt 0:00:01] RECAPT} 25. Be2 $1 {[%emt 0:00:30] DEEPSTRONG} Rb8 {[%emt 0:04:48] BESTDEEP} 26. Bc4 {[%emt 0:00:28] CPLX 2.0} Nxe4 {[%emt 0:00:27] CPLX 2.0} 27. Bxf7+ {[%emt 0:02:05] A strong pair of Bishops. CPLX 2.2} Kh8 {[%emt 0:00:01] CPLX 2.1} 28. h4 {[%emt 0:00:57] CPLX 2.0 20 (Bf7-d5) (=4)} Nd6 {[%emt 0:00:23] BESTDEEP} 29. Bd5 {[%emt 0:00:21] CPLX 2.0} Nf5 {[%emt 0:00:31] CPLX 2.0} 30. Bg5 {[%emt 0:01:57] CPLX 2.1 9 (Be3-c1) (=4)} h6 {[%emt 0:00:58] CPLX 2.1} 31. Be7 {[%emt 0:03:40] White is more active. CPLX 2.2 23 (Bg5-c1) (=5)} Nxe7 {[%emt 0:01:43] CPLX 2.0} 32. Rxe7 $14 {[%emt 0:00:02][%mdl 4096] Endgame KRB-KRB. RECAPT} Rb6 {[%emt 0:00:49] RELBLUND 83 (Bg7-f6) (=11)} (32... Bf6 $14 33. Ra7 g5) 33. Re8+ $16 {[%emt 0:01:12] CPLX 2.0} Kh7 {[%emt 0:00:01] EASY} 34. h5 {[%emt 0:00:16] BESTDEEP} Bf6 {[%emt 0:00:45] CPLX 2.0} 35. Be4 {[%emt 0:00:31] EASY} Kg7 {[%emt 0:00:01] CPLX 2.1} 36. hxg6 {[%emt 0:00:14] MISS-Be4xg6 1 (Be4xg6) (=4)} Rb4 {[%emt 0:00:32] CPLX 2.5 14 (h6-h5) (=10)} 37. Bf5 {[%emt 0:01:18] CPLX 2.6 14 (f2-f3) (=4)} h5 {[%emt 0:00:50] CPLX 2.4 0 (Rb4-b7) (=10)} 38. Re6 {[%emt 0:01:37] CPLX 2.4} h4 {[%emt 0:00:41] CPLX 2.3 0 (Rb4-a4) (=10)} 39. g4 {[%emt 0:01:08] CPLX 2.6 15 (Kg1-g2) (=5)} Rb7 {[%emt 0:00:30] CPLX 2.5 0 (Rb4-c4) (=9)} 40. g5 {[%emt 0:00:56] RELBLUND 77 (Re6-a6) (=7)} ({White should try} 40. Ra6 $16) 40... Bxg5 $11 {[%emt 0:00:13] EASY} 41. Rxe5 {[%emt 0:00:05] CPLX 2.3 17 (Bf5-e4) (=7)} Re7 {[%emt 0:01:21] CPLX 2.1 26 (Bg5-f6) (=9)} 42. Rd5 {[%emt 0:00:20] CPLX 2.3 4 (Re5-a5) (=7)} Bf6 {[%emt 0:00:20] CPLX 2.1 7 (Kg7-h6) (=9)} 43. Kg2 {[%emt 0:00:22] CPLX 2.1} Re5 {[%emt 0:00:11] CPLX 2.1 12 (Kg7-h6) (=9)} 44. Rd7+ {[%emt 0:00:05] EASY} Re7 {[%emt 0:00:21] CPLX 2.2} 45. Rd6 {[%emt 0:00:40] BESTDEEP} Re5 {[%emt 0:00:29] [#] CPLX 2.2 37 (Re7-e2) (=10)} 46. Bd3 {[%emt 0:00:16] BESTDEEP} Re7 {[%emt 0:00:15] CPLX 2.3} 47. f3 {[%emt 0:01:02] CPLX 2.2 72 (Kg2-h3) (=8)} (47. Kh3 $16) 47... Be5 {[%emt 0:00:27] MISSDEEP-Re7-e5 72 (Re7-e5) (=11)} (47... Re5 $1 $14) 48. Rd5 $16 {[%emt 0:00:12] CPLX 2.3} Kf6 {[%emt 0:01:26] CPLX 2.2 74 (Kg7-h6) (=13)} (48... Kh6 $16) 49. Kh3 $18 {[%emt 0:00:31] CPLX 2.3} Bg3 {[%emt 0:00:17] CPLX 2.3 0 (Re7-c7) (=12)} 50. Kg4 {[%emt 0:00:59] CPLX 2.4} Rc7 {[%emt 0:00:02] CPLX 2.4 0 (Bg3-e1) (=12)} 51. Be4 {[%emt 0:00:35] MISS-f3-f4 0 (f3-f4) (=7)} Re7 {[%emt 0:00:20] CPLX 2.4 0 (Bg3-e1) (=12)} 52. Ra5 {[%emt 0:00:08] CPLX 2.4} Rc7 {[%emt 0:01:08] CPLX 2.4 0 (Kf6-g7) (=12)} 53. f4 {[%emt 0:00:39][%cal Bf3f4,Bf4f5][%mdl 32] CPLX 2.4} Re7 {[%emt 0:00:14] CPLX 3.2 0 (Bg3-f2) (=11)} 54. Ra4 {[%emt 0:00:29] BESTDEEP} Rc7 $2 {[%emt 0:00:28] BEVAL 400 (Kf6-g7) (=20)} (54... Kg7 55. f5 Kh6) 55. Ra6+ {[%emt 0:00:26] BEVAL} Kg7 {[%emt 0:00:09] BEVAL} 56. Kg5 $2 {[%emt 0:01:02] MISS-f4-f5 400 (f4-f5) (=15)} (56. f5 {White wants to mate with f6+.} Be5 57. Kg5) 56... Be1 {[%emt 0:01:17] BESTDEEP} 57. f5 {[%emt 0:00:25] Threatening mate with f6+. EASY} Bd2+ {[%emt 0:00:11] CPLX 2.5} 58. Kxh4 {[%emt 0:00:08] CPLX 2.5 0 (Kg5-g4) (=14)} Bc3 {[%emt 0:00:27] Prevents f6+. CPLX 2.3} 59. Kg5 {[%emt 0:00:05] CPLX 2.3} Bd2+ {[%emt 0:00:04] CPLX 2.3} 60. Kg4 {[%emt 0:00:04] f6+ would kill now. CPLX 2.4} Bc3 {[%emt 0:00:06] Prevents f6+. CPLX 2.4} 61. Kf4 {[%emt 0:00:52]} Bf6 {[%emt 0:00:21]} 62. Bd5 {[%emt 0:00:12]} Rd7 {[%emt 0:00:24]} 63. Ke4 {[%emt 0:00:13]} Re7+ {[%emt 0:00:27]} 64. Be6 {[%emt 0:00:04]} Rc7 {[%emt 0:00:46]} 65. Kd5 {[%emt 0:00:04]} Rb7 {[%emt 0:01:12]} 66. Kc6 {[%emt 0:00:23]} Re7 {[%emt 0:00:13]} 67. Kd6 {[%emt 0:00:38]} Rb7 {[%emt 0:00:59]} (67... Bg5 $142 68. Ke5 Rb7) 68. Bd5 {[%emt 0:00:08]} Re7 {[%emt 0:00:19]} 69. Ra2 {[%emt 0:02:02]} Kf8 {[%emt 0:00:29]} (69... Bg5 {was worth a try.} 70. Rg2 Bf6) 70. Be6 {[%emt 0:01:29]} Kg7 {[%emt 0:00:20]} 71. Ra8 {[%emt 0:00:24]} Rb7 $2 {[%emt 0:00:17]} (71... Bg5 72. Ke5 Bf6+ 73. Kd5 Rb7) 72. Kc6 {[%emt 0:00:05]} Re7 {[%emt 0:00:09]} 73. Rg8+ {[%emt 0:00:58]} Kh6 {[%emt 0:00:01]} 74. Rf8 {[%emt 0:00:20]} Kg7 {[%emt 0:00:13]} 75. Ra8 {[%emt 0:00:02]} Be5 {[%emt 0:00:18]} 76. Rg8+ {[%emt 0:00:37]} Kh6 {[%emt 0:00:02]} 77. Bd7 {[%emt 0:00:31]} Bf6 {[%emt 0:01:34]} 78. Kd6 {[%emt 0:00:14][%cal Og8h8]} Re1 {[%emt 0:00:36]} 79. Be6 {[%emt 0:00:59]} Rd1+ {[%emt 0:00:13] [#]} 80. Bd5 $2 {[%emt 0:00:06]} (80. Kc7 $1 $18) 80... Re1 $2 {[%emt 0:00:10]} (80... Kg5 $11 {and Black is okay.}) 81. Ra8 {[%emt 0:01:00] aiming for Ra7.} Be7+ {[%emt 0:01:35]} 82. Kd7 {[%emt 0:00:07]} Bf6 {[%emt 0:00:03] Against Rh8+} 83. Be6 {[%emt 0:00:23] And now Ke8 would win.} Ra1 {[%emt 0:00:11]} 84. Rb8 {[%emt 0:00:50] Hoping for Rb7.} Ra7+ {[%emt 0:00:20]} 85. Ke8 $2 {[%emt 0:01:06]} ({Better is} 85. Kd6 $18) 85... Kg7 $11 {[%emt 0:00:21] The position is equal.} 86. Bd7 {[%emt 0:00:10]} Rc7 {[%emt 0:01:10]} 87. Rb1 {[%emt 0:00:57] Rh1 is the strong threat.} Ra7 {[%emt 0:00:13]} 88. Rb8 {[%emt 0:00:10]} Rc7 {[%emt 0:00:02]} 89. Rb1 {[%emt 0:00:04] Strongly threatening Rh1.} Ra7 {[%emt 0:00:03]} 90. Rc1 {[%emt 0:00:33]} Rb7 {[%emt 0:01:29]} 91. Rc2 {[%emt 0:00:49]} Ra7 {[%emt 0:00:13]} 92. Rc8 {[%emt 0:00:38]} Rb7 {[%emt 0:00:12]} 93. Ra8 {[%emt 0:00:25]} Rc7 {[%emt 0:00:04]} 94. Ra6 {[%emt 0:00:27]} Rb7 {[%emt 0:00:37]} 95. Rc6 {[%emt 0:00:30]} Ra7 {[%emt 0:00:01]} 96. Rc8 {Black defended with fortune.  Weighted Error Value: White=0.17 (very precise) /Black=0.13 (very precise)} 1/2-1/2

[Event "ESP-chT Honor Division 2022"]
[Site "Linares"]
[Date "2022.09.19"]
[Round "3.5"]
[White "Korneev, Oleg"]
[Black "Henderson de La Fuente, Lance"]
[Result "1/2-1/2"]
[ECO "C67"]
[WhiteElo "2460"]
[BlackElo "2504"]
[Annotator "TA"]
[PlyCount "62"]
[EventDate "2022.09.17"]
[EventType "team-tourn"]
[EventCountry "ESP"]
[SourceTitle "playchess.com"]
[Source "ChessBase"]
[SourceQuality "1"]
[TimeControl "5400+30"]

{[%evp 21,62,0,14,14,10,0,6,0,0,-10,0,0,0,0,0,0,0,0,0,0,0,0,0,0,13,0,0,0,0,-9,-9,-9,-9,-13,-13,-15,0,0,0,0,0,0,0]} 1. e4 {[%emt 0:01:46]} e5 {[%emt 0:00:31]} 2. Nf3 {[%emt 0:00:03]} Nc6 {[%emt 0:00:12]} 3. Bb5 {[%emt 0:00:04]} Nf6 {[%emt 0:00:43][%cal Bg8f6,Bf6e4,Be4d6,Bd6f5][%mdl 32]} 4. O-O {[%emt 0:00:12]} Nxe4 {[%emt 0:00:22]} 5. d4 {[%emt 0:00:03]} Nd6 {[%emt 0:00:16]} 6. Bxc6 {[%emt 0:00:02]} dxc6 {[%emt 0:00:11]} 7. dxe5 {[%emt 0:00:03]} Nf5 {[%emt 0:00:18]} 8. Qxd8+ {[%emt 0:00:03]} Kxd8 {[%emt 0:00:07]} 9. Rd1+ {[%emt 0:00:04]} Ke8 {[%emt 0:00:26]} 10. Nc3 {[%emt 0:00:02][%cal Bb1c3,Bc3e2,Be2d4][%mdl 32]} Be7 {[%emt 0:02:16]} 11. h3 {[%emt 0:03:51]} Nh4 {[%emt 0:02:16] Hoping for ...Nxf3+. CPLX 2.1 14 (Bc8-e6) (=14). The position is equal.} 12. Nxh4 {[%emt 0:03:59] C67: Ruy Lopez: Berlin Defence: 4 0-0 Nxe4.} Bxh4 {[%emt 0:00:08] RECAPT} 13. Ne2 {[%emt 0:01:56] CPLX 2.0 10 (Bc1-e3) (=5)} h5 {[%emt 0:12:07] CPLX 2.0 6 (Bh4-e7) (=7)} 14. Nd4 {[%emt 0:01:14] CPLX 2.0 6 (Bc1-e3) (=5)} Be7 {[%emt 0:02:43] CPLX 2.0} 15. Re1 {[%emt 0:30:17] [#] CPLX 2.0 10 (Bc1-e3) (=7)} a6 $146 {[%emt 0:22:57] CPLX 2.0 10 (g7-g5) (=6)} ({Predecessor:} 15... g5 16. b3 Rg8 17. Bb2 Rg6 18. Rad1 a5 19. a4 g4 20. hxg4 Bxg4 21. f3 Bh3 {½-½ (37) Isea Fernandez,G (2194)-Delgado,N (2100) ICCF email 2021}) 16. e6 {[%emt 0:02:24] CPLX 2.0 0 (Bc1-e3) (=5)} Bxe6 {[%emt 0:02:47] BESTDEEP} 17. Nxe6 {[%emt 0:00:19] CPLX 2.0 0 (Bc1-f4) (=4)} fxe6 {[%emt 0:00:04] RECAPT} 18. Rxe6 {[%emt 0:02:16] [#] aiming for Bg5. RECAPT} Kf7 {[%emt 0:00:58] CPLX 2.0} 19. Re4 {[%emt 0:07:20] CPLX 2.0 0 (Re6-e2) (=3)} Rhe8 {[%emt 0:05:58] CPLX 2.0} 20. Kf1 {[%emt 0:12:27] CPLX 2.0 0 (Bc1-e3) (=3)} Bf6 {[%emt 0:01:40] BESTDEEP} 21. Rxe8 {[%emt 0:00:07] BESTDEEP} Rxe8 $11 {[%emt 0:00:05][%mdl 4096] Endgame KRB-KRB. RECAPT} 22. c3 {[%emt 0:01:56] CPLX 2.0 0 (Ra1-b1) (=2)} b5 {[%emt 0:13:39] CPLX 2.0 13 (a6-a5) (=4)} 23. a4 {[%emt 0:11:10] CPLX 2.0 13 (Bc1-e3) (=3)} Ke6 {[%emt 0:07:54] BESTDEEP} 24. axb5 {[%emt 0:02:08] CPLX 2.0} axb5 {[%emt 0:00:09] RECAPT} 25. Bd2 {[%emt 0:05:13] CPLX 2.0 9 (Kf1-e2) (=3)} Kd5 {[%emt 0:00:51] CPLX 2.0} 26. b3 {[%emt 0:00:13] BESTDEEP} c5 {[%emt 0:00:47] BESTDEEP} 27. Rd1 {[%emt 0:01:54] CPLX 2.0 4 (Ra1-a7) (=3)} Kc6 {[%emt 0:04:16] CPLX 2.0 0 (Re8-a8) (=3)} 28. g4 {[%emt 0:02:05] CPLX 2.0 2 (Rd1-a1) (=3)} hxg4 {[%emt 0:00:37] CPLX 2.0 15 (Re8-a8) (=3)} 29. hxg4 {[%emt 0:00:02] RECAPT} Ra8 {[%emt 0:03:59] CPLX 2.0 0 (Re8-h8) (=3)} 30. g5 {[%emt 0:01:07] CPLX 2.0} Be5 {[%emt 0:00:24] CPLX 2.0 0 (Bf6-e7) (=3)} 31. Ke2 {[%emt 0:01:03] BESTDEEP} Ra3 {[%emt 0:03:06] A rather calm draw.  Weighted Error Value: White=0.03 (flawless) /Black=0.03 (flawless)} 1/2-1/2

[Event "ESP-chT Honor Division 2022"]
[Site "Linares"]
[Date "2022.09.19"]
[Round "3.6"]
[White "Cramling, Pia"]
[Black "Ubilava, Elizbar"]
[Result "0-1"]
[ECO "E18"]
[WhiteElo "2468"]
[BlackElo "2434"]
[Annotator "TA"]
[PlyCount "76"]
[EventDate "2022.09.17"]
[EventType "team-tourn"]
[EventCountry "ESP"]
[SourceTitle "playchess.com"]
[Source "ChessBase"]
[SourceQuality "1"]
[TimeControl "5400+30"]

{[%evp 18,76,16,11,16,16,17,12,12,-2,8,-10,0,0,0,-10,-9,-10,17,16,17,13,18,5,23,-6,7,0,11,-25,-32,-25,0,-50,-37,-50,-50,-50,-50,-289,-289,-359,-316,-626,-631,-629,-620,-593,-577,-1031,-352,-2066,-1962,-2293,-1344,-2002,-1965,-6307,-6245,-2572,-1541]} 1. d4 {[%emt 0:00:14]} Nf6 {[%emt 0:00:17]} 2. c4 {[%emt 0:00:13]} e6 {[%emt 0:00:14]} 3. Nf3 {[%emt 0:00:19]} b6 {[%emt 0:00:21]} 4. g3 {[%emt 0:00:21]} Bb7 {[%emt 0:00:22]} 5. Bg2 {[%emt 0:00:19]} Be7 {[%emt 0:00:56]} 6. O-O {[%emt 0:01:45]} O-O {[%emt 0:00:44]} 7. Nc3 {[%emt 0:00:30]} Ne4 {[%emt 0:01:08]} 8. Bd2 {[%emt 0:01:36]} d6 {[%emt 0:04:45]} 9. d5 {[%emt 0:07:37]} Nxd2 {[%emt 0:06:10] 9...Nxd2 is better than 9...Nxc3.} 10. Qxd2 {[%emt 0:01:03] RECAPT} e5 {[%emt 0:01:02] BESTDEEP. E18: Queen's Indian: Old Main Line (4 g3 Bb7 5 Bg2 Be7 6 0-0 0-0 7 Nc3).} 11. e4 {[%emt 0:01:06]} Nd7 {[%emt 0:01:14] CPLX 2.0} 12. Ne1 {[%emt 0:11:57] CPLX 2.0 5 (b2-b4) (=2)} g6 {[%emt 0:09:57] [#] BESTDEEP. The position is equal.} 13. Nc2 $146 {[%emt 0:03:16] CPLX 2.0 14 (b2-b3) (=5)} ({Predecessor:} 13. Nd3 Nc5 14. Rae1 Bf6 15. b4 Nxd3 16. Qxd3 a5 17. a3 Bc8 18. Nb5 Bd7 19. Rb1 {½-½ (72) Lyrberg,P (2444)-Granda Zuniga,J (2663) Barcelona 2014}) 13... Bf6 {[%emt 0:08:42] CPLX 2.0 10 (Be7-g5) (=3)} 14. Ne3 {[%emt 0:04:56] CPLX 2.0 18 (b2-b3) (=7)} Bg7 {[%emt 0:03:12] CPLX 2.0 10 (a7-a5) (=4)} 15. Qc2 {[%emt 0:00:50] CPLX 2.0 0 (Bg2-h3) (=6)} a5 {[%emt 0:01:05] CPLX 2.0} 16. Rae1 {[%emt 0:02:46] CPLX 2.0 10 (a2-a3) (=7)} Nc5 {[%emt 0:04:21] CPLX 2.0 1 (h7-h5) (=3)} 17. Bh3 {[%emt 0:04:40] BESTDEEP} Bc8 {[%emt 0:02:42] CPLX 2.0 27 (h7-h5) (=6)} 18. Bxc8 {[%emt 0:01:25] CPLX 2.4} Qxc8 {[%emt 0:00:10] RECAPT} 19. f3 {[%emt 0:01:09] CPLX 2.0 4 (b2-b3) (=5)} Qd7 {[%emt 0:07:24] CPLX 2.0 5 (Bg7-h6) (=5)} 20. b3 {[%emt 0:05:38] CPLX 2.0 13 (Nc3-b5) (=6)} h5 {[%emt 0:02:10] CPLX 2.0 18 (Bg7-h6) (=6)} 21. Ned1 {[%emt 0:05:13] CPLX 2.0 29 (Nc3-b5) (=8)} f5 {[%emt 0:05:18][%cal Bf7f5,Bf5f4][%mdl 32] CPLX 2.0 13 (h5-h4) (=7)} 22. Nf2 {[%emt 0:00:31] CPLX 2.1 7 (e4xf5) (=8)} Rf7 {[%emt 0:01:38] CPLX 2.1 11 (f5-f4) (=7)} 23. Nd3 {[%emt 0:07:13] CPLX 2.1 36 (Kg1-h1) (=10)} Nxd3 {[%emt 0:03:25] CPLX 2.3 0 (f5-f4) (=7)} 24. Qxd3 {[%emt 0:00:05] RECAPT} Bh6 {[%emt 0:00:13] CPLX 2.0 25 (f5-f4) (=8)} 25. Nd1 {[%emt 0:10:37] CPLX 2.1 50 (e4xf5) (=12)} (25. exf5 $11 Qxf5 26. Qxf5 gxf5 27. f4) 25... f4 $15 {[%emt 0:04:29] BESTDEEP} 26. Kg2 {[%emt 0:00:37] CPLX 2.0 13 (Re1-e2) (=12)} Raf8 {[%emt 0:02:22] CPLX 3.3 0 (f4xg3) (=7)} 27. a4 {[%emt 0:04:10] BESTDEEP} Qe7 {[%emt 0:05:50] BESTDEEP} 28. Nb2 $2 {[%emt 0:05:49] This costs White the game. RELBLUND 239 (Rf1-f2) (=23)} ({Better is} 28. Rf2 $1 $15) 28... fxg3 $19 {[%emt 0:03:06] CPLX 3.4=>BLUNDERREACT} 29. hxg3 {[%emt 0:00:05] CPLX 4.4 70 (h2-h3) (=25)} Qg5 {[%emt 0:00:30] Hoping for ...h4. MISS-h5-h4 43 (h5-h4) (=8)} 30. Kh3 $2 {[%emt 0:10:49] CPLX 3.5 310 (Rf1-f2) (=39)} (30. Rf2 h4 31. g4) 30... h4 {[%emt 0:03:12][%csl Gh4][%cal Rg5g3] EASY} 31. f4 {[%emt 0:00:21] CPLX 4.0} exf4 {[%emt 0:01:46] EASY} 32. gxh4 {[%emt 0:00:22] EASY} Qe5 {[%emt 0:01:56] BESTDEEP} 33. Qd2 {[%emt 0:02:37] [#] CPLX 3.3 400 (Qd3-f3) (=51)} g5 $2 {[%emt 0:02:31] CPLX 3.5 400 (Bh6-g5) (=23)} (33... Bg5 $1 {[%mdl 512] ( -> ...Rh7)} 34. Rf3 {[#]} Bxh4 $1 {[%mdl 512]}) 34. Rf3 $2 {[%emt 0:01:14] RELBLUND 400 (Rf1-g1) (=65)} (34. Rg1 Rg7 35. Rg4) 34... g4+ {[%emt 0:03:26] EASY. Black is clearly winning.} 35. Kxg4 {[%emt 0:00:04] CPLX 3.5 331 (Kh3-h2) (=75)} Rg7+ {[%emt 0:00:05] BESTDEEP} 36. Kh3 {[%emt 0:00:04] LEGAL} Qh5 {[%emt 0:00:08] EASY} 37. Qf2 {[%emt 0:00:30] CPLX 4.5 400 (Qd2-e2) (=84)} Bg5 {[%emt 0:03:57][%cal Og5h4] DEEPSTRONG} 38. Rg1 {[%emt 0:01:05] [#] EASY} Bxh4 $1 {[%emt 0:00:48][%mdl 512] Weighted Error Value: White=1.28/Black=0.27 (precise)} 0-1